Workbook

Sheet Sheet1
B1: 205 Danforth St, Syracuse, NY 13208 | G1: 509 Delaware St, Syracuse, NY 13204 | L1: 306 Shuart Ave, Syracuse, NY 13203
B2: 1) Building Data | G2: 1) Building Data | L2: 1) Building Data
B3: Unit Type (br/ba) | C3: # of Units | D3: Rent /Mo | E3: Total Annual Rent | G3: Unit Type (br/ba) | H3: # of Units | I3: Rent /Mo | J3: Total Annual Rent | L3: Unit Type (br/ba) | M3: # of Units | N3: Rent /Mo | O3: Total Annual Rent
B4: 2br / 1 ba | C4: 1 | D4: 1600 | E4: =D4*12 -> 19200 | G4: 2br / 1 ba (Top) | H4: 1 | I4: 1350 | J4: =I4*12 -> 16200 | L4: 2 br / 1 ba | M4: 1 | N4: 1650 | O4: =N4*12 -> 19800
B5: Totals: | C5: =SUM(C4) -> 1 | D5: =sum(D4) -> 1600 | E5: =(D5)*12 -> 19200 | G5: 3br / 1 ba (Bottom) | H5: 1 | I5: 1500 | J5: =(I5)*12 -> 18000 | L5: 4 br / 1 ba | M5: 1 | N5: 1650 | O5: 19800
G6: Totals: | H6: =SUM(H4:H5) -> 2 | I6: =sum(I4:I5) -> 2850 | J6: 34200 | L6: Totals: | M6: =sum(M4:M5) -> 2 | N6: 3300 | O6: 39600
B7: 2) Operating Statement | G7: 2) Operating Statement | L7: 2) Operating Statement
B9: Gross Income | C9: =E5 -> 19200 | G9: Gross Income | H9: =J6 -> 34200 | L9: Gross Income | M9: =O6 -> 39600
B11: Property Management Expense | C11: =C9*D11 -> 768 | D11: 0.04 | G11: Property Management Expense | H11: =H9*I11 -> 1368 | I11: 0.04 | L11: Property Management Expense | M11: =M9*N11 -> 1584 | N11: 0.04
B12: Property Taxes | C12: 2113.28 | G12: Property Taxes | H12: 1560.56 | L12: Property Taxes | M12: 3739.9
B13: Property Insurance | C13: 422 | G13: Property Insurance | H13: 1578.48 | L13: Property Insurance | M13: 1578.48
B14: Utilities: Electric, Gas (Tenant Pays) | C14: 0 | G14: Utilities: Electric, Gas (Tenant Pays) | H14: 0 | L14: Utilities: Electric, Gas (Tenant Pays) | M14: 0
B15: Water (Tenant Pays) | C15: 0 | G15: Water | H15: 1240 | L15: Water | M15: 1400
B16: Waste Removal (City) | C16: 0 | G16: Waste Removal (City) | H16: 0 | L16: Waste Removal (City) | M16: 0
B17: Repair and Maintenance | C17: 750 | D17: $750 a unit | G17: Repair and Maintenance | H17: 1500 | I17: $750 a unit | L17: Repair and Maintenance | M17: 1500 | N17: $750 a unit
B18: Total Expenses | C18: =SUM(C11:C17) -> 4053.28 | G18: Total Expenses | H18: =SUM(H11:H17) -> 7247.04 | L18: Total Expenses | M18: =SUM(M11:M17) -> 9802.38
B19: Net Operating Income | C19: =C9-C18 -> 15146.72 | G19: Net Operating Income | H19: =H9-H18 -> 26952.96 | L19: Net Operating Income | M19: =M9-M18 -> 29797.62
B20: Net Monthly Cash Flow | C20: =C19/12 -> 1262.226667 | G20: Net Monthly Cash Flow | H20: =H19/12 -> 2246.08 | L20: Net Monthly Cash Flow | M20: =M19/12 -> 2483.135
B21: Operating Margin | C21: =C19/C9 -> 0.7888916667 | G21: Operating Margin | H21: =H19/H9 -> 0.7880982456 | L21: Operating Margin | M21: =M19/M9 -> 0.7524651515
